[Event "Argentine Superior Chess Championship 2023"]
[Site "https://www.chess.com"]
[Date "2023.11.05"]
[Round "9"]
[White "Francisco Guecamburu, Candela Be"]
[Black "Tokman, Ariel"]
[Result "0-1"]
[Board "5"]
[TimeControl "5400+30"]
[WhiteFideId "160911"]
[BlackFideId "117420"]
[WhiteElo "2349"]
[BlackElo "2305"]
[WhiteTeam "ARG"]
[BlackTeam "ARG"]
[WhiteClock "0:32:32"]
[BlackClock "0:39:32"]

1. e4 {[%clk 1:30:53]}  c6 {[%clk 1:30:45]} 2. d4 {[%clk 1:31:14]}  d5 {[%clk 1:31:11]} 3. e5 {[%clk 1:31:36]}  c5 {[%clk 1:31:37]} 4. Nf3 {[%clk 1:31:57]}  cxd4 {[%clk 1:31:58]} 5. Qxd4 {[%clk 1:32:16]}  Nc6 {[%clk 1:32:25]} 6. Qf4 {[%clk 1:32:36]}  e6 {[%clk 1:32:51]} 7. Nc3 {[%clk 1:32:56]}  Nb4 {[%clk 1:33:05]} 8. Nd4 {[%clk 1:33:16]}  Ne7 {[%clk 1:19:51]} 9. a3 {[%clk 1:22:10]}  Ng6 {[%clk 1:19:04]} 10. Qg3 {[%clk 1:20:23]}  Nc6 {[%clk 1:17:28]} 11. Bb5 {[%clk 1:06:51]}  Bd7 {[%clk 1:16:45]} 12. Bxc6 {[%clk 1:05:15]}  bxc6 {[%clk 1:16:35]} 13. O-O {[%clk 1:01:36]}  Be7 {[%clk 1:05:04]} 14. Nf3 {[%clk 0:55:04]}  O-O {[%clk 1:05:25]} 15. Bg5 {[%clk 0:50:23]}  Bxg5 {[%clk 1:01:42]} 16. Nxg5 {[%clk 0:50:44]}  Qb8 {[%clk 1:01:39]} 17. f4 {[%clk 0:38:15]}  Qxb2 {[%clk 0:56:02]} 18. Qd3 {[%clk 0:35:18]}  Qb6+ {[%clk 0:55:47]} 19. Kh1 {[%clk 0:35:40]}  h6 {[%clk 0:47:53]} 20. Nh3 {[%clk 0:34:00]}  f5 {[%clk 0:39:44]} 21. Na4 {[%clk 0:27:41]}  Qa5 {[%clk 0:39:15]} 22. Qd4 {[%clk 0:28:04]}  Rfb8 {[%clk 0:34:18]} 23. Nf2 {[%clk 0:25:49]}  Nxf4 {[%clk 0:28:20]} 24. Qxf4 {[%clk 0:24:09]}  c5 {[%clk 0:28:41]} 25. Nd3 {[%clk 0:17:10]}  Bxa4 {[%clk 0:27:33]} 26. Nxc5 {[%clk 0:17:34]}  Qxc5 {[%clk 0:27:46]} 27. Qxa4 {[%clk 0:17:58]}  Rb2 {[%clk 0:24:36]} 28. Rac1 {[%clk 0:17:40]}  Rc8 {[%clk 0:23:24]} 29. Qd7 {[%clk 0:16:49]}  Qc6 {[%clk 0:18:51]} 30. Qxa7 {[%clk 0:16:19]}  Ra8 {[%clk 0:17:45]} 31. Qe7 {[%clk 0:15:15]}  Rb7 {[%clk 0:16:16]} 32. Qh4 {[%clk 0:15:36]}  Rxa3 {[%clk 0:15:46]} 33. c4 {[%clk 0:11:23]}  Kh7 {[%clk 0:09:55]} 34. Qd4 {[%clk 0:07:23]}  Ra4 {[%clk 0:09:20]} 35. h3 {[%clk 0:01:49]}  Rxc4 {[%clk 0:09:34]} 36. Qd2 {[%clk 0:02:02]}  Rc7 {[%clk 0:09:37]} 37. Rcd1 {[%clk 0:01:58]}  Rc2 {[%clk 0:09:56]} 38. Qd4 {[%clk 0:02:07]}  Qc4 {[%clk 0:10:05]} 39. Qb6 {[%clk 0:02:21]}  Qe4 {[%clk 0:09:58]} 40. Rg1 {[%clk 0:32:32]}  R7c3 {[%clk 0:39:32]} 0-1

[Event "Argentine Superior Chess Championship 2023"]
[Site "https://www.chess.com"]
[Date "2023.11.05"]
[Round "9"]
[White "Miranda, Rafael"]
[Black "Silva, Luca"]
[Result "1/2-1/2"]
[Board "6"]
[TimeControl "5400+30"]
[WhiteFideId "130990"]
[BlackFideId "147370"]
[WhiteElo "2343"]
[BlackElo "2301"]
[WhiteTeam "ARG"]
[BlackTeam "ARG"]
[WhiteClock "0:57:53"]
[BlackClock "0:25:33"]

1. e4 {[%clk 1:30:51]}  c5 {[%clk 1:30:54]} 2. Nf3 {[%clk 1:31:15]}  d6 {[%clk 1:31:19]} 3. d4 {[%clk 1:31:40]}  cxd4 {[%clk 1:31:45]} 4. Nxd4 {[%clk 1:32:06]}  Nf6 {[%clk 1:32:09]} 5. Nc3 {[%clk 1:32:29]}  a6 {[%clk 1:32:36]} 6. Be3 {[%clk 1:32:54]}  e5 {[%clk 1:32:45]} 7. Nf3 {[%clk 1:33:13]}  Be7 {[%clk 1:30:30]} 8. Bc4 {[%clk 1:33:35]}  O-O {[%clk 1:26:35]} 9. O-O {[%clk 1:33:55]}  Nc6 {[%clk 1:26:53]} 10. Bg5 {[%clk 1:31:57]}  Be6 {[%clk 1:18:30]} 11. Bb3 {[%clk 1:28:50]}  Na5 {[%clk 1:13:01]} 12. Bxf6 {[%clk 1:26:30]}  Bxf6 {[%clk 1:13:22]} 13. Qd3 {[%clk 1:22:44]}  Rc8 {[%clk 1:05:57]} 14. Rfd1 {[%clk 1:17:39]}  Nxb3 {[%clk 1:03:56]} 15. axb3 {[%clk 1:17:53]}  Rc6 {[%clk 0:52:47]} 16. Ne1 {[%clk 1:10:58]}  Qe8 {[%clk 0:47:37]} 17. Nd5 {[%clk 1:08:35]}  Bd8 {[%clk 0:47:44]} 18. Rd2 {[%clk 1:08:30]}  Bg5 {[%clk 0:43:00]} 19. Re2 {[%clk 1:07:27]}  f5 {[%clk 0:41:32]} 20. Nb4 {[%clk 0:59:14]}  Rb6 {[%clk 0:41:09]} 21. Nd5 {[%clk 0:59:32]}  Rc6 {[%clk 0:41:35]} 22. Nb4 {[%clk 0:59:55]}  fxe4 {[%clk 0:31:58]} 23. Rxe4 {[%clk 0:59:06]}  Rb6 {[%clk 0:30:34]} 24. Nf3 {[%clk 0:58:28]}  Bd8 {[%clk 0:29:48]} 25. Nd5 {[%clk 0:57:21]}  Rc6 {[%clk 0:29:39]} 26. Nb4 {[%clk 0:56:43]}  Rb6 {[%clk 0:30:04]} 27. Nd5 {[%clk 0:57:09]}  Rc6 {[%clk 0:26:53]} 28. Nb4 {[%clk 0:57:31]}  Rb6 {[%clk 0:25:12]} 29. Nd5 {[%clk 0:57:53]}  Rc6 {[%clk 0:25:33]} 1/2-1/2

[Event "Argentine Superior Chess Championship 2023"]
[Site "https://www.chess.com"]
[Date "2023.11.06"]
[Round "10"]
[White "Acosta, Pablo Ismael"]
[Black "Perez Ponsa, Federico"]
[Result "1/2-1/2"]
[Board "1"]
[TimeControl "5400+30"]
[WhiteFideId "124311"]
[BlackFideId "117927"]
[WhiteElo "2477"]
[BlackElo "2524"]
[WhiteTeam "ARG"]
[BlackTeam "ARG"]
[WhiteClock "0:19:04"]
[BlackClock "0:14:43"]

1. d4 {[%clk 1:25:24]}  Nf6 {[%clk 1:30:53]} 2. Nf3 {[%clk 1:25:49]}  d5 {[%clk 1:31:02]} 3. c4 {[%clk 1:26:14]}  e6 {[%clk 1:31:27]} 4. Nc3 {[%clk 1:25:42]}  dxc4 {[%clk 1:31:14]} 5. Qa4+ {[%clk 1:25:42]}  Nc6 {[%clk 1:31:08]} 6. Bg5 {[%clk 1:22:02]}  Bb4 {[%clk 1:29:15]} 7. e4 {[%clk 1:18:26]}  Bd7 {[%clk 1:16:40]} 8. Qd1 {[%clk 0:55:37]}  h6 {[%clk 0:47:36]} 9. Bxf6 {[%clk 0:53:40]}  Qxf6 {[%clk 0:47:47]} 10. Bxc4 {[%clk 0:54:04]}  O-O {[%clk 0:37:33]} 11. O-O {[%clk 0:51:46]}  Rfd8 {[%clk 0:35:35]} 12. e5 {[%clk 0:50:11]}  Qe7 {[%clk 0:34:33]} 13. Ne2 {[%clk 0:49:13]}  Be8 {[%clk 0:31:10]} 14. Qc2 {[%clk 0:43:47]}  Na5 {[%clk 0:27:10]} 15. Bd3 {[%clk 0:43:30]}  Qd7 {[%clk 0:26:50]} 16. Rac1 {[%clk 0:37:17]}  Rac8 {[%clk 0:26:13]} 17. a3 {[%clk 0:36:54]}  Bf8 {[%clk 0:26:01]} 18. Nf4 {[%clk 0:30:27]}  c5 {[%clk 0:22:15]} 19. d5 {[%clk 0:22:22]}  Qa4 {[%clk 0:21:57]} 20. Qxa4 {[%clk 0:21:58]}  Bxa4 {[%clk 0:22:25]} 21. dxe6 {[%clk 0:20:37]}  fxe6 {[%clk 0:16:27]} 22. Be4 {[%clk 0:18:15]}  Kf7 {[%clk 0:13:16]} 23. h4 {[%clk 0:17:36]}  Bc6 {[%clk 0:12:20]} 24. Bg6+ {[%clk 0:17:39]}  Ke7 {[%clk 0:11:22]} 25. Rxc5 {[%clk 0:17:13]}  Nb3 {[%clk 0:10:59]} 26. Rc3 {[%clk 0:17:12]}  Nd2 {[%clk 0:08:20]} 27. Nxd2 {[%clk 0:15:51]}  Rxd2 {[%clk 0:08:49]} 28. Bh5 {[%clk 0:16:06]}  Rd4 {[%clk 0:06:42]} 29. g3 {[%clk 0:15:16]}  g5 {[%clk 0:06:14]} 30. hxg5 {[%clk 0:14:31]}  hxg5 {[%clk 0:06:43]} 31. Ng6+ {[%clk 0:14:12]}  Kd7 {[%clk 0:06:28]} 32. Nxf8+ {[%clk 0:08:27]}  Rxf8 {[%clk 0:06:56]} 33. Rd1 {[%clk 0:08:41]}  Rxd1+ {[%clk 0:05:47]} 34. Bxd1 {[%clk 0:09:00]}  Ke7 {[%clk 0:05:58]} 35. Rd3 {[%clk 0:07:18]}  Rf5 {[%clk 0:06:04]} 36. Re3 {[%clk 0:06:43]}  Rf8 {[%clk 0:06:28]} 37. Bc2 {[%clk 0:05:26]}  Rd8 {[%clk 0:06:26]} 38. Be4 {[%clk 0:04:48]}  Bxe4 {[%clk 0:01:50]} 39. Rxe4 {[%clk 0:05:13]}  Rd5 {[%clk 0:02:10]} 40. Kg2 {[%clk 0:35:30]}  Kf7 {[%clk 0:31:12]} 41. Kf3 {[%clk 0:29:24]}  b5 {[%clk 0:25:36]} 42. Re2 {[%clk 0:29:01]}  Rc5 {[%clk 0:23:23]} 43. Ke4 {[%clk 0:28:04]}  Rc4+ {[%clk 0:23:02]} 44. Kd3 {[%clk 0:28:06]}  Kg6 {[%clk 0:23:16]} 45. Re4 {[%clk 0:26:56]}  Rc5 {[%clk 0:22:27]} 46. g4 {[%clk 0:27:20]}  Rd5+ {[%clk 0:20:03]} 47. Ke2 {[%clk 0:27:30]}  a5 {[%clk 0:20:08]} 48. Kf3 {[%clk 0:27:27]}  Rd2 {[%clk 0:16:06]} 49. Re2 {[%clk 0:27:21]}  Rd4 {[%clk 0:13:32]} 50. Rc2 {[%clk 0:25:42]}  b4 {[%clk 0:13:06]} 51. Rc7 {[%clk 0:16:47]}  bxa3 {[%clk 0:10:27]} 52. bxa3 {[%clk 0:17:12]}  Rf4+ {[%clk 0:11:19]} 53. Kg3 {[%clk 0:17:13]}  Re4 {[%clk 0:11:41]} 54. Rc5 {[%clk 0:16:18]}  Ra4 {[%clk 0:11:59]} 55. Rc3 {[%clk 0:16:46]}  Re4 {[%clk 0:12:24]} 56. Re3 {[%clk 0:16:30]}  Rxe3+ {[%clk 0:12:30]} 57. fxe3 {[%clk 0:16:54]}  Kf7 {[%clk 0:12:56]} 58. Kf3 {[%clk 0:17:19]}  Ke7 {[%clk 0:13:22]} 59. Ke4 {[%clk 0:17:46]}  Kd7 {[%clk 0:13:50]} 60. Kd4 {[%clk 0:18:12]}  Kc6 {[%clk 0:14:17]} 61. Kc4 {[%clk 0:18:38]}  Kb6 {[%clk 0:14:43]} 62. a4 {[%clk 0:19:04]} 1/2-1/2

[Event "Argentine Superior Chess Championship 2023"]
[Site "https://www.chess.com"]
[Date "2023.11.06"]
[Round "10"]
[White "Peralta, Fernando"]
[Black "Valerga, Diego"]
[Result "1-0"]
[Board "2"]
[TimeControl "5400+30"]
[WhiteFideId "105309"]
[BlackFideId "100587"]
[WhiteElo "2580"]
[BlackElo "2429"]
[WhiteTeam "ARG"]
[BlackTeam "ARG"]
[WhiteClock "0:01:56"]
[BlackClock "0:02:44"]

1. d4 {[%clk 1:30:54]}  Nf6 {[%clk 1:30:52]} 2. c4 {[%clk 1:31:19]}  e6 {[%clk 1:31:16]} 3. Nc3 {[%clk 1:31:35]}  Bb4 {[%clk 1:31:37]} 4. e3 {[%clk 1:32:02]}  O-O {[%clk 1:31:56]} 5. Bd3 {[%clk 1:32:21]}  d5 {[%clk 1:31:50]} 6. cxd5 {[%clk 1:32:17]}  exd5 {[%clk 1:32:09]} 7. Nge2 {[%clk 1:32:23]}  c5 {[%clk 1:29:16]} 8. O-O {[%clk 1:30:43]}  Nc6 {[%clk 1:19:48]} 9. f3 {[%clk 1:30:02]}  Re8 {[%clk 1:17:09]} 10. Kh1 {[%clk 1:30:02]}  h6 {[%clk 1:16:12]} 11. Rg1 {[%clk 1:25:01]}  h5 {[%clk 1:06:45]} 12. a3 {[%clk 1:14:44]}  cxd4 {[%clk 1:04:59]} 13. exd4 {[%clk 1:15:04]}  Bd6 {[%clk 0:53:55]} 14. g3 {[%clk 1:01:02]}  Be6 {[%clk 0:47:21]} 15. Bf4 {[%clk 0:51:30]}  Rc8 {[%clk 0:44:12]} 16. Qd2 {[%clk 0:37:52]}  Be7 {[%clk 0:35:58]} 17. Rae1 {[%clk 0:28:21]}  Nd7 {[%clk 0:28:04]} 18. Be3 {[%clk 0:26:26]}  Bf6 {[%clk 0:22:40]} 19. Bb1 {[%clk 0:25:51]}  Nf8 {[%clk 0:22:43]} 20. Nf4 {[%clk 0:25:15]}  g6 {[%clk 0:22:47]} 21. Ba2 {[%clk 0:24:09]}  Ne7 {[%clk 0:21:56]} 22. Re2 {[%clk 0:21:58]}  Qd7 {[%clk 0:22:04]} 23. Rge1 {[%clk 0:21:41]}  Red8 {[%clk 0:20:59]} 24. Qd1 {[%clk 0:17:33]}  Qd6 {[%clk 0:19:08]} 25. Bf2 {[%clk 0:13:17]}  Rd7 {[%clk 0:16:58]} 26. Nd3 {[%clk 0:13:17]}  Nf5 {[%clk 0:10:51]} 27. Nc5 {[%clk 0:09:41]}  Re7 {[%clk 0:09:23]} 28. N3e4 {[%clk 0:08:50]}  dxe4 {[%clk 0:09:24]} 29. Nxe4 {[%clk 0:09:18]}  Bxa2 {[%clk 0:04:09]} 30. Nxd6 {[%clk 0:09:41]}  Rxe2 {[%clk 0:04:17]} 31. Rxe2 {[%clk 0:08:51]}  Nxd6 {[%clk 0:04:30]} 32. b3 {[%clk 0:09:14]}  Bg5 {[%clk 0:01:55]} 33. f4 {[%clk 0:08:11]}  Bxb3 {[%clk 0:01:55]} 34. Qxb3 {[%clk 0:08:32]}  Bf6 {[%clk 0:02:19]} 35. Qb4 {[%clk 0:06:14]}  Rd8 {[%clk 0:02:12]} 36. d5 {[%clk 0:03:49]}  b6 {[%clk 0:02:24]} 37. Bd4 {[%clk 0:03:56]}  Bxd4 {[%clk 0:02:20]} 38. Qxd4 {[%clk 0:04:22]}  Nd7 {[%clk 0:02:44]} 39. Qa4 {[%clk 0:01:56]} 1-0

[Event "Argentine Superior Chess Championship 2023"]
[Site "https://www.chess.com"]
[Date "2023.11.06"]
[Round "10"]
[White "Tristan, Leonardo"]
[Black "Krysa, Leandro"]
[Result "1/2-1/2"]
[Board "3"]
[TimeControl "5400+30"]
[WhiteFideId "113816"]
[BlackFideId "116807"]
[WhiteElo "2524"]
[BlackElo "2545"]
[WhiteTeam "ARG"]
[BlackTeam "ARG"]
[WhiteClock "0:03:23"]
[BlackClock "0:05:39"]

1. d4 {[%clk 1:28:24]}  d5 {[%clk 1:30:49]} 2. Nf3 {[%clk 1:28:43]}  Nf6 {[%clk 1:31:02]} 3. c3 {[%clk 1:29:06]}  c5 {[%clk 1:30:50]} 4. dxc5 {[%clk 1:29:30]}  e6 {[%clk 1:30:54]} 5. b4 {[%clk 1:29:50]}  a5 {[%clk 1:30:41]} 6. e3 {[%clk 1:30:02]}  axb4 {[%clk 1:30:49]} 7. cxb4 {[%clk 1:30:27]}  b6 {[%clk 1:31:13]} 8. a4 {[%clk 1:30:26]}  bxc5 {[%clk 1:29:07]} 9. b5 {[%clk 1:30:49]}  Bd6 {[%clk 1:18:39]} 10. Be2 {[%clk 1:27:56]}  Bb7 {[%clk 1:17:41]} 11. Bb2 {[%clk 1:28:02]}  Nbd7 {[%clk 1:17:32]} 12. Nbd2 {[%clk 1:28:08]}  Bc7 {[%clk 1:15:08]} 13. O-O {[%clk 1:24:09]}  O-O {[%clk 1:09:49]} 14. Qc2 {[%clk 1:23:42]}  h6 {[%clk 1:05:48]} 15. Rfd1 {[%clk 1:21:17]}  Re8 {[%clk 1:04:11]} 16. h3 {[%clk 1:07:38]}  Qe7 {[%clk 0:47:22]} 17. Nh2 {[%clk 0:32:43]}  Red8 {[%clk 0:30:31]} 18. Nhf1 {[%clk 0:29:46]}  Ra7 {[%clk 0:19:04]} 19. Ra2 {[%clk 0:14:18]}  Rda8 {[%clk 0:18:20]} 20. Rda1 {[%clk 0:14:34]}  Bb6 {[%clk 0:14:20]} 21. Bc3 {[%clk 0:05:02]}  Qd8 {[%clk 0:14:07]} 22. Qb2 {[%clk 0:04:47]}  c4 {[%clk 0:09:16]} 23. Bd4 {[%clk 0:04:10]}  Ra5 {[%clk 0:08:26]} 24. Bc3 {[%clk 0:02:10]}  R5a7 {[%clk 0:08:46]} 25. Bd4 {[%clk 0:02:35]}  Ra5 {[%clk 0:07:00]} 26. Bc3 {[%clk 0:02:58]}  R5a7 {[%clk 0:07:17]} 27. Bd4 {[%clk 0:03:23]}  Ra5 {[%clk 0:05:39]} 1/2-1/2

[Event "Argentine Superior Chess Championship 2023"]
[Site "https://www.chess.com"]
[Date "2023.11.06"]
[Round "10"]
[White "Tokman, Ariel"]
[Black "Gomez, Carlos David"]
[Result "1-0"]
[Board "4"]
[TimeControl "5400+30"]
[WhiteFideId "117420"]
[BlackFideId "114669"]
[WhiteElo "2305"]
[BlackElo "2336"]
[WhiteTeam "ARG"]
[BlackTeam "ARG"]
[WhiteClock "0:14:29"]
[BlackClock "0:24:45"]

1. Nf3 {[%clk 1:30:55]}  c5 {[%clk 1:24:00]} 2. c4 {[%clk 1:30:49]}  Nf6 {[%clk 1:24:13]} 3. Nc3 {[%clk 1:31:05]}  Nc6 {[%clk 1:24:32]} 4. g3 {[%clk 1:31:13]}  d5 {[%clk 1:24:53]} 5. cxd5 {[%clk 1:31:27]}  Nxd5 {[%clk 1:25:16]} 6. Bg2 {[%clk 1:31:46]}  Nc7 {[%clk 1:25:40]} 7. a3 {[%clk 1:26:32]}  g6 {[%clk 1:25:22]} 8. Rb1 {[%clk 1:26:11]}  Bg7 {[%clk 1:19:58]} 9. O-O {[%clk 1:25:31]}  Bf5 {[%clk 1:12:39]} 10. d3 {[%clk 1:24:37]}  Qd7 {[%clk 1:12:23]} 11. Be3 {[%clk 1:12:09]}  c4 {[%clk 1:01:39]} 12. Nh4 {[%clk 1:09:11]}  cxd3 {[%clk 0:55:35]} 13. Nxf5 {[%clk 1:09:29]}  gxf5 {[%clk 0:55:59]} 14. Qb3 {[%clk 1:02:33]}  Ne6 {[%clk 0:50:51]} 15. Rfd1 {[%clk 0:56:42]}  Bd4 {[%clk 0:29:45]} 16. Rxd3 {[%clk 0:17:15]}  Nc5 {[%clk 0:28:46]} 17. Qc4 {[%clk 0:15:01]}  Nxd3 {[%clk 0:28:59]} 18. Bxc6 {[%clk 0:14:42]}  bxc6 {[%clk 0:29:14]} 19. Bxd4 {[%clk 0:13:27]}  e5 {[%clk 0:28:12]} 20. Be3 {[%clk 0:12:44]}  f4 {[%clk 0:23:06]} 21. Bd2 {[%clk 0:12:31]}  fxg3 {[%clk 0:21:31]} 22. Qxd3 {[%clk 0:06:47]}  gxh2+ {[%clk 0:21:16]} 23. Kxh2 {[%clk 0:07:03]}  Qxd3 {[%clk 0:20:40]} 24. exd3 {[%clk 0:07:32]}  O-O-O {[%clk 0:20:19]} 25. Be3 {[%clk 0:06:46]}  Rhg8 {[%clk 0:19:17]} 26. Rg1 {[%clk 0:05:13]}  Rxg1 {[%clk 0:19:36]} 27. Kxg1 {[%clk 0:05:42]}  a6 {[%clk 0:19:59]} 28. Ne4 {[%clk 0:05:32]}  Rxd3 {[%clk 0:19:41]} 29. Ng5 {[%clk 0:05:01]}  f5 {[%clk 0:19:47]} 30. Nxh7 {[%clk 0:05:19]}  Rb3 {[%clk 0:19:14]} 31. Ng5 {[%clk 0:05:19]}  f4 {[%clk 0:17:49]} 32. Bd2 {[%clk 0:04:14]}  Rxb2 {[%clk 0:17:09]} 33. Bc3 {[%clk 0:04:43]}  Rb5 {[%clk 0:17:24]} 34. Nf7 {[%clk 0:04:49]}  Rb1+ {[%clk 0:17:49]} 35. Kg2 {[%clk 0:05:12]}  Rb3 {[%clk 0:14:58]} 36. Bb4 {[%clk 0:05:40]}  a5 {[%clk 0:05:02]} 37. Bxa5 {[%clk 0:06:08]}  Rxa3 {[%clk 0:04:41]} 38. Nd6+ {[%clk 0:04:06]}  Kb8 {[%clk 0:03:21]} 39. Nc4 {[%clk 0:04:25]}  Ra4 {[%clk 0:02:56]} 40. Nxe5 {[%clk 0:34:49]}  c5 {[%clk 0:31:38]} 41. Nd7+ {[%clk 0:30:54]}  Ka7 {[%clk 0:32:02]} 42. Bb6+ {[%clk 0:31:14]}  Ka8 {[%clk 0:32:26]} 43. Bxc5 {[%clk 0:30:22]}  Kb7 {[%clk 0:32:29]} 44. Ne5 {[%clk 0:29:14]}  Re4 {[%clk 0:30:27]} 45. Nd3 {[%clk 0:28:32]}  Kc6 {[%clk 0:29:36]} 46. Kf3 {[%clk 0:28:42]}  Ra4 {[%clk 0:28:57]} 47. Be7 {[%clk 0:28:23]}  Ra7 {[%clk 0:29:02]} 48. Bg5 {[%clk 0:27:48]}  Ra3 {[%clk 0:29:25]} 49. Ke4 {[%clk 0:28:07]}  f3 {[%clk 0:28:21]} 50. Be3 {[%clk 0:28:14]}  Ra4+ {[%clk 0:28:35]} 51. Kxf3 {[%clk 0:28:11]}  Kd5 {[%clk 0:28:58]} 52. Bc1 {[%clk 0:23:10]}  Rc4 {[%clk 0:28:46]} 53. Bb2 {[%clk 0:22:43]}  Ke6 {[%clk 0:28:58]} 54. Ke3 {[%clk 0:21:58]}  Kf5 {[%clk 0:29:21]} 55. f3 {[%clk 0:22:13]}  Ra4 {[%clk 0:29:33]} 56. Bd4 {[%clk 0:16:52]}  Ra3 {[%clk 0:29:46]} 57. Bc5 {[%clk 0:16:39]}  Rc3 {[%clk 0:29:28]} 58. Bb4 {[%clk 0:16:38]}  Rb3 {[%clk 0:29:44]} 59. Ke2 {[%clk 0:16:21]}  Rb1 {[%clk 0:30:04]} 60. Bd2 {[%clk 0:16:34]}  Rh1 {[%clk 0:29:07]} 61. Nf2 {[%clk 0:16:34]}  Rh2 {[%clk 0:29:22]} 62. Ke3 {[%clk 0:16:58]}  Rh8 {[%clk 0:29:41]} 63. Ne4 {[%clk 0:16:45]}  Re8 {[%clk 0:29:54]} 64. Bb4 {[%clk 0:16:56]}  Re6 {[%clk 0:29:50]} 65. Bd6 {[%clk 0:17:12]}  Re8 {[%clk 0:30:13]} 66. Kd4 {[%clk 0:17:21]}  Re6 {[%clk 0:29:24]} 67. Kd5 {[%clk 0:17:33]}  Re8 {[%clk 0:29:43]} 68. Bc7 {[%clk 0:15:38]}  Re7 {[%clk 0:27:48]} 69. Ng3 {[%clk 0:14:45]}  Kg6 {[%clk 0:28:04]} 70. Be5 {[%clk 0:14:46]}  Ra7 {[%clk 0:27:37]} 71. f4 {[%clk 0:14:46]}  Ra3 {[%clk 0:26:03]} 72. Ke6 {[%clk 0:14:16]}  Kh7 {[%clk 0:24:34]} 73. Ne4 {[%clk 0:14:29]}  Rf3 {[%clk 0:24:45]} 1-0

[Event "Argentine Superior Chess Championship 2023"]
[Site "https://www.chess.com"]
[Date "2023.11.06"]
[Round "10"]
[White "Villca, Julian"]
[Black "Miranda, Rafael"]
[Result "1-0"]
[Board "5"]
[TimeControl "5400+30"]
[WhiteFideId "134902"]
[BlackFideId "130990"]
[WhiteElo "2398"]
[BlackElo "2343"]
[WhiteTeam "ARG"]
[BlackTeam "ARG"]
[WhiteClock "0:11:03"]
[BlackClock "0:12:18"]

1. d4 {[%clk 1:30:55]}  Nf6 {[%clk 1:30:50]} 2. c4 {[%clk 1:31:19]}  e6 {[%clk 1:31:06]} 3. Nf3 {[%clk 1:31:43]}  b6 {[%clk 1:31:19]} 4. g3 {[%clk 1:30:23]}  Bb7 {[%clk 1:31:41]} 5. Bg2 {[%clk 1:30:49]}  Bb4+ {[%clk 1:32:03]} 6. Bd2 {[%clk 1:30:56]}  Bxd2+ {[%clk 1:32:19]} 7. Nbxd2 {[%clk 1:31:23]}  O-O {[%clk 1:32:35]} 8. Qc2 {[%clk 1:31:12]}  d6 {[%clk 1:32:48]} 9. O-O {[%clk 1:31:30]}  Nbd7 {[%clk 1:33:10]} 10. e4 {[%clk 1:28:10]}  e5 {[%clk 1:33:25]} 11. d5 {[%clk 1:28:06]}  a5 {[%clk 1:33:03]} 12. b3 {[%clk 1:28:08]}  c6 {[%clk 1:28:42]} 13. dxc6 {[%clk 1:23:53]}  Bxc6 {[%clk 1:29:06]} 14. a4 {[%clk 1:24:07]}  Nc5 {[%clk 1:29:15]} 15. Rfe1 {[%clk 1:24:19]}  Ra7 {[%clk 1:27:32]} 16. Nh4 {[%clk 1:24:10]}  g6 {[%clk 1:24:41]} 17. Nb1 {[%clk 1:24:32]}  Nh5 {[%clk 1:23:58]} 18. Nc3 {[%clk 1:22:16]}  Nf4 {[%clk 1:23:23]} 19. Rad1 {[%clk 1:20:30]}  Nfe6 {[%clk 1:20:37]} 20. Nf3 {[%clk 1:20:29]}  Rd7 {[%clk 1:18:38]} 21. Nd5 {[%clk 1:12:08]}  f5 {[%clk 1:15:54]} 22. exf5 {[%clk 1:09:26]}  gxf5 {[%clk 1:12:02]} 23. Bh3 {[%clk 0:47:15]}  Rdf7 {[%clk 1:02:28]} 24. Qc3 {[%clk 0:43:30]}  e4 {[%clk 0:55:33]} 25. Nd4 {[%clk 0:36:08]}  Bxd5 {[%clk 0:55:42]} 26. cxd5 {[%clk 0:36:22]}  Nxd4 {[%clk 0:56:04]} 27. Rxd4 {[%clk 0:36:43]}  Qf6 {[%clk 0:48:29]} 28. Rc4 {[%clk 0:36:53]}  Qh6 {[%clk 0:48:41]} 29. Bg2 {[%clk 0:35:14]}  Nd3 {[%clk 0:44:05]} 30. Rd1 {[%clk 0:30:54]}  f4 {[%clk 0:37:00]} 31. Rxe4 {[%clk 0:26:29]}  Nxf2 {[%clk 0:36:39]} 32. Kxf2 {[%clk 0:24:39]}  Qh5 {[%clk 0:14:57]} 33. Rh1 {[%clk 0:11:58]}  fxg3+ {[%clk 0:14:36]} 34. Ke1 {[%clk 0:12:19]}  Rg7 {[%clk 0:12:23]} 35. hxg3 {[%clk 0:11:43]}  Qg5 {[%clk 0:12:18]} 36. Bh3 {[%clk 0:11:03]} 1-0

[Event "Argentine Superior Chess Championship 2023"]
[Site "https://www.chess.com"]
[Date "2023.11.06"]
[Round "10"]
[White "Silva, Luca"]
[Black "Francisco Guecamburu, Candela Be"]
[Result "0-1"]
[Board "6"]
[TimeControl "5400+30"]
[WhiteFideId "147370"]
[BlackFideId "160911"]
[WhiteElo "2301"]
[BlackElo "2349"]
[WhiteTeam "ARG"]
[BlackTeam "ARG"]
[WhiteClock "0:27:11"]
[BlackClock "0:22:55"]

1. d4 {[%clk 1:30:56]}  Nf6 {[%clk 1:28:51]} 2. c4 {[%clk 1:31:17]}  e6 {[%clk 1:29:12]} 3. Nf3 {[%clk 1:31:41]}  c5 {[%clk 1:29:37]} 4. d5 {[%clk 1:32:07]}  exd5 {[%clk 1:30:01]} 5. cxd5 {[%clk 1:32:33]}  d6 {[%clk 1:30:25]} 6. Nc3 {[%clk 1:32:57]}  g6 {[%clk 1:30:48]} 7. h3 {[%clk 1:33:10]}  Bg7 {[%clk 1:31:11]} 8. Bf4 {[%clk 1:33:21]}  O-O {[%clk 1:30:11]} 9. e3 {[%clk 1:33:28]}  Qe7 {[%clk 1:27:50]} 10. Be2 {[%clk 1:33:04]}  b6 {[%clk 1:19:09]} 11. O-O {[%clk 1:30:47]}  Ne8 {[%clk 1:18:26]} 12. Nd2 {[%clk 1:19:54]}  f5 {[%clk 1:09:24]} 13. Nc4 {[%clk 1:14:49]}  Nd7 {[%clk 1:07:19]} 14. Bh2 {[%clk 0:56:33]}  Ne5 {[%clk 0:55:16]} 15. Qd2 {[%clk 0:56:12]}  Nxc4 {[%clk 0:50:54]} 16. Bxc4 {[%clk 0:56:35]}  Nc7 {[%clk 0:49:43]} 17. a4 {[%clk 0:53:58]}  a6 {[%clk 0:47:20]} 18. Rfe1 {[%clk 0:45:12]}  g5 {[%clk 0:34:26]} 19. h4 {[%clk 0:45:10]}  h6 {[%clk 0:32:11]} 20. hxg5 {[%clk 0:45:03]}  hxg5 {[%clk 0:32:32]} 21. f4 {[%clk 0:44:05]}  gxf4 {[%clk 0:25:31]} 22. exf4 {[%clk 0:40:57]}  Bd4+ {[%clk 0:24:44]} 23. Kh1 {[%clk 0:41:23]}  Qg7 {[%clk 0:24:53]} 24. Ne2 {[%clk 0:39:08]}  Bf6 {[%clk 0:20:30]} 25. Ra3 {[%clk 0:39:04]}  Kf7 {[%clk 0:17:25]} 26. Rg3 {[%clk 0:32:12]}  Qh6 {[%clk 0:16:47]} 27. Rh3 {[%clk 0:29:14]}  Qg6 {[%clk 0:16:52]} 28. Ng1 {[%clk 0:26:48]}  Rh8 {[%clk 0:09:27]} 29. Rxh8 {[%clk 0:18:37]}  Bxh8 {[%clk 0:09:55]} 30. Nf3 {[%clk 0:19:03]}  Kf8 {[%clk 0:08:54]} 31. Qe2 {[%clk 0:15:30]}  Bf6 {[%clk 0:08:50]} 32. Ne5 {[%clk 0:15:31]}  Qh7 {[%clk 0:07:06]} 33. Qd3 {[%clk 0:10:50]}  b5 {[%clk 0:03:44]} 34. Ba2 {[%clk 0:10:41]}  Bb7 {[%clk 0:03:12]} 35. Re3 {[%clk 0:10:01]}  c4 {[%clk 0:03:15]} 36. Qd4 {[%clk 0:05:43]}  Nxd5 {[%clk 0:03:37]} 37. Rf3 {[%clk 0:02:08]}  dxe5 {[%clk 0:03:05]} 38. fxe5 {[%clk 0:02:27]}  Re8 {[%clk 0:02:43]} 39. Qc5+ {[%clk 0:01:48]}  Be7 {[%clk 0:01:45]} 40. Qf2 {[%clk 0:32:13]}  f4 {[%clk 0:30:44]} 41. Rh3 {[%clk 0:29:49]}  Qe4 {[%clk 0:27:09]} 42. Bxf4 {[%clk 0:26:24]}  Nxf4 {[%clk 0:23:22]} 43. Rh8+ {[%clk 0:26:51]}  Kf7 {[%clk 0:23:05]} 44. e6+ {[%clk 0:27:11]}  Kxe6 {[%clk 0:22:55]} 0-1